bitfinex-derivatives/quotes_BTCF0:USTF0_20251118
["timestamp","ask_amount","ask_price","bid_price","bid_amount"]
[1763473328965,0.1096,91228.0,91210.0,0.01303]
[1763473329161,0.00219803,91220.0,91210.0,0.01303]
[1763473329366,0.13399856,91220.0,91210.0,0.01303]
[1763473329562,0.00016436,91236.0,91235.0,0.04371]
[1763473329873,0.13180053,91250.0,91245.0,0.01303]
[1763473330062,9.646e-05,91249.0,91230.0,0.02197292]
[1763473330372,9.646e-05,91249.0,91210.0,0.01303]
[1763473330373,0.26579909,91240.0,91210.0,0.01303]
[1763473330573,0.00219803,91240.0,91210.0,0.01303]
[1763473330767,0.1097074,91239.0,91210.0,0.01303]
[1763473330962,0.00219803,91220.0,91219.0,0.04371]
[1763473331274,0.00016436,91234.0,91216.0,0.00016436]
[1763473331275,0.00016436,91234.0,91230.0,0.01303]
[1763473331472,0.00011185,91233.0,91232.0,0.04371]
[1763473332073,0.00011185,91233.0,91232.0,0.05265292]
[1763473332269,0.00011185,91233.0,91230.0,0.01303]
[1763473332673,0.1096,91232.0,91216.0,0.00016436]
[1763473332869,0.13180053,91226.0,91216.0,0.00016436]
[1763473333070,8.287e-05,91225.0,91216.0,0.00910728]
[1763473333468,8.287e-05,91225.0,91216.0,0.00016436]
[1763473334063,8.287e-05,91225.0,91216.0,0.00910728]
[1763473334670,8.287e-05,91225.0,91216.0,0.00016436]
[1763473334875,8.287e-05,91225.0,91216.0,0.00910728]
[1763473335275,8.287e-05,91225.0,91216.0,0.00016436]
[1763473335776,8.287e-05,91225.0,91216.0,0.00910728]
[1763473336169,8.287e-05,91225.0,91224.0,0.04371]
[1763473336568,8.287e-05,91225.0,91224.0,0.05265292]
[1763473336775,8.287e-05,91225.0,91224.0,0.06568292]
[1763473337177,8.287e-05,91225.0,91224.0,0.05674]
[1763473337472,0.2219881,91260.0,91233.0,0.04371]
[1763473337679,0.22418613,91260.0,91252.0,0.01303]
[1763473337875,0.22418613,91260.0,91252.0,0.02197292]
[1763473338669,0.00010223,91259.0,91252.0,0.02197292]
[1763473339381,0.00010223,91259.0,91252.0,0.01303]
[1763473339565,0.00010223,91259.0,91258.0,0.04371]
[1763473339969,0.00010223,91259.0,91258.0,0.05265292]
[1763473340476,0.00010223,91259.0,91258.0,0.04371]
[1763473340663,0.00010223,91259.0,91258.0,0.05265292]
[1763473341377,0.10966223,91259.0,91252.0,0.01303]
[1763473341586,0.00010223,91259.0,91252.0,0.01303]
[1763473341972,0.00010223,91259.0,91247.0,0.00016436]
[1763473341973,0.10956,91258.0,91247.0,0.00016436]
[1763473342173,0.10956,91258.0,91224.0,0.01303]
[1763473342174,0.22208184,91257.0,91224.0,0.01303]
[1763473342374,0.00219803,91230.0,91229.0,0.02288]
[1763473342572,0.00232534,91230.0,91229.0,0.02288]
[1763473343174,0.00232534,91230.0,91229.0,0.03182292]
[1763473343382,0.00232534,91230.0,91229.0,0.02288]
[1763473343583,0.00232534,91230.0,91229.0,0.03182292]
[1763473344281,0.00232534,91230.0,91229.0,0.02288]
[1763473345075,0.00232534,91230.0,91229.0,0.00894292]
[1763473345580,0.00332534,91230.0,91224.0,0.01303]
[1763473346283,0.00332534,91230.0,91229.0,0.0446]
[1763473346682,0.00332534,91230.0,91229.0,0.05354292]
[1763473346987,0.00332534,91230.0,91220.0,0.00016436]
[1763473346988,0.00232534,91230.0,91220.0,0.00016436]
[1763473347187,0.13550956,91229.0,91220.0,0.00016436]
[1763473347383,0.02590956,91228.0,91220.0,0.00016436]
[1763473347686,0.02590956,91227.0,91224.0,0.01293]
[1763473347887,0.13550956,91227.0,91224.0,0.01293]
[1763473348087,0.02590956,91226.0,91224.0,0.01293]
[1763473348279,0.02590956,91225.0,91220.0,0.00016436]
[1763473348479,0.02601109,91224.0,91220.0,0.00016436]
[1763473348787,0.02590956,91223.0,91220.0,0.00016436]
[1763473348975,0.13550956,91223.0,91220.0,0.00016436]
[1763473349179,0.02590956,91222.0,91220.0,0.00016436]
[1763473349376,0.05873865,91222.0,91220.0,0.00016436]
[1763473349684,0.13550956,91221.0,91220.0,0.00016436]
[1763473349986,0.02590956,91221.0,91220.0,0.00016436]
[1763473350183,0.1096,91221.0,91220.0,0.00016436]
[1763473350382,0.02590956,91221.0,91220.0,0.04522436]
[1763473350582,0.05839134,91221.0,91220.0,0.04522436]
[1763473350790,0.0843009,91221.0,91220.0,0.04522436]
[1763473351191,0.05839134,91221.0,91220.0,0.04522436]
[1763473351393,0.02590956,91221.0,91220.0,0.04522436]
[1763473351778,0.02590956,91223.0,91220.0,0.04522436]
[1763473351990,0.02590956,91223.0,91221.0,0.01293]
[1763473352384,0.02590956,91222.0,91221.0,0.01293]
[1763473352783,0.00010153,91224.0,91221.0,0.01293]
[1763473352984,0.02590956,91223.0,91221.0,0.01293]
[1763473353185,0.02590956,91222.0,91221.0,0.03541]
[1763473353379,0.00010153,91224.0,91221.0,0.03541]
[1763473353585,0.02590956,91223.0,91221.0,0.03541]
[1763473353784,0.02590956,91222.0,91221.0,0.05799]
[1763473353990,0.00010153,91224.0,91223.0,0.04506]
[1763473354196,0.0262556,91224.0,91223.0,0.04506]
[1763473356786,0.0262556,91224.0,91221.0,0.01293]
[1763473356787,0.00016436,91239.0,91238.0,0.04506]
[1763473357788,0.00021075,91239.0,91238.0,0.04506]
[1763473359594,0.08955755,91259.0,91258.0,0.04506]
[1763473359791,0.00219803,91260.0,91258.0,0.04506]
[1763473359994,0.00219803,91260.0,91259.0,0.04506]
[1763473360191,0.2219881,91280.0,91279.0,0.04506]
[1763473360388,0.02433803,91280.0,91279.0,0.04506]
[1763473360588,0.04556803,91280.0,91279.0,0.04506]
[1763473360886,0.02433803,91280.0,91279.0,0.04506]
[1763473361095,0.00219803,91280.0,91279.0,0.04506]
[1763473361493,0.00016436,91289.0,91288.0,0.04506]
[1763473361795,0.0588801,91289.0,91288.0,0.04506]
[1763473362301,0.00016436,91289.0,91288.0,0.04506]
[1763473362598,0.05871574,91299.0,91298.0,0.04506]
[1763473362794,0.00073266,91300.0,91299.0,0.04506]
[1763473362998,0.00073266,91300.0,91299.0,0.05799]
[1763473364498,0.00173266,91300.0,91299.0,0.05799]
[1763473366000,0.04510266,91300.0,91290.0,0.00016436]
[1763473366302,0.02214,91291.0,91290.0,0.00236239]
[1763473366500,0.04337,91291.0,91290.0,0.00236239]
[1763473367293,0.04337,91291.0,91290.0,0.00016436]
[1763473367498,0.00073266,91290.0,91273.0,0.01293]
[1763473367700,0.22272076,91290.0,91280.0,0.00219803]
[1763473368604,0.00073266,91290.0,91289.0,0.04506]
[1763473369103,0.00073266,91290.0,91273.0,0.01293]
[1763473369307,0.02446653,91289.0,91288.0,0.01923]
[1763473369605,0.04660653,91289.0,91288.0,0.01923]
[1763473369803,0.04660653,91289.0,91260.0,0.01293]
[1763473370008,0.0135,91286.0,91280.0,0.00219803]
[1763473370203,0.02446653,91285.0,91280.0,0.00219803]
[1763473370404,0.02446653,91284.0,91280.0,0.00219803]
[1763473370604,0.02446653,91283.0,91280.0,0.00219803]
[1763473370807,0.04337,91281.0,91280.0,0.00219803]
[1763473373704,0.001,91281.0,91280.0,0.00219803]
[1763473374214,0.04437,91281.0,91280.0,0.00219803]
[1763473381417,0.04638,91281.0,91280.0,0.00219803]
[1763473381607,0.04632,91275.0,91274.0,0.00016436]
[1763473381815,0.00073266,91270.0,91220.0,0.8440281]
[1763473382112,0.00073266,91270.0,91242.0,0.1097183]
[1763473382318,0.01375,91267.0,91260.0,0.00219803]
[1763473382614,0.00073266,91270.0,91260.0,0.00219803]
[1763473383210,0.00016436,91274.0,91260.0,0.00219803]
[1763473383405,0.00073266,91270.0,91260.0,0.00219803]
[1763473383816,0.02381266,91270.0,91260.0,0.00219803]
[1763473384414,0.01375,91267.0,91260.0,0.00219803]
[1763473384620,0.03683,91267.0,91260.0,0.00219803]
[1763473386308,0.06007,91267.0,91260.0,0.00219803]
[1763473386509,0.04632,91261.0,91260.0,0.00219803]
[1763473387214,0.03683,91267.0,91260.0,0.00219803]
[1763473387519,0.02308,91261.0,91260.0,0.00219803]
[1763473388220,0.04632,91261.0,91260.0,0.00219803]
[1763473388421,0.04632,91261.0,91220.0,0.3317338]
[1763473388422,0.00073266,91260.0,91245.0,0.1396]
[1763473388717,0.06007,91256.0,91250.0,0.00219803]
[1763473389021,0.02308,91251.0,91250.0,0.00219803]
[1763473389412,0.0701918,91251.0,91250.0,0.00219803]
[1763473390722,0.06692801,91251.0,91250.0,0.00219803]
[1763473391125,0.06692801,91251.0,91250.0,0.01271803]
[1763473391319,0.0238718,91251.0,91250.0,0.01271803]
[1763473392614,0.0701918,91251.0,91250.0,0.01271803]
[1763473392809,0.02308,91231.0,91230.0,0.06416604]
[1763473393006,0.02308,91231.0,91230.0,0.01271803]
[1763473393218,0.01375,91234.0,91230.0,0.01271803]
[1763473393219,0.01375,91234.0,91233.0,0.01052]
[1763473393827,0.06007,91234.0,91233.0,0.00526]
[1763473394118,0.04632,91231.0,91230.0,0.01271803]
[1763473394324,0.02308,91231.0,91230.0,0.01271803]
[1763473394519,0.01375,91234.0,91233.0,0.01052]
[1763473395213,0.00016436,91240.0,91239.0,0.01052]
[1763473395413,0.02474875,91240.0,91239.0,0.01052]
[1763473395915,0.07106875,91240.0,91239.0,0.01052]
[1763473398613,0.04472131,91240.0,91239.0,0.01052]
[1763473398820,0.05947131,91240.0,91239.0,0.01052]
[1763473399028,0.05947131,91240.0,91222.0,0.26612]
[1763473399222,0.05947131,91240.0,91230.0,0.00219803]
[1763473399623,0.05947131,91240.0,91239.0,0.00686]
[1763473399929,0.05947131,91240.0,91226.0,0.00016436]
[1763473400136,0.05947131,91240.0,91230.0,0.00219803]
[1763473400825,0.05947131,91240.0,91239.0,0.01372]
[1763473401529,0.05847131,91240.0,91239.0,0.01372]
[1763473402031,0.00016436,91244.0,91243.0,0.01372]
[1763473402429,0.00016436,91244.0,91243.0,0.12328]
[1763473402731,0.04428,91264.0,91243.0,0.10956]
[1763473402931,0.04428,91264.0,91250.0,0.00219803]
[1763473403937,0.01268,91260.0,91250.0,0.00219803]
[1763473404131,0.01268,91260.0,91259.0,0.0134]
[1763473405027,0.03413,91260.0,91259.0,0.0134]
[1763473405222,0.00016436,91266.0,91265.0,0.0134]
[1763473405435,0.04444436,91266.0,91265.0,0.0134]
[1763473405824,0.04428,91261.0,91260.0,0.01559803]
[1763473406625,0.01793889,91261.0,91260.0,0.01559803]
[1763473407335,0.03938889,91261.0,91260.0,0.01559803]
[1763473408037,0.03938889,91261.0,91260.0,0.02414803]
[1763473408038,0.0428,91261.0,91260.0,0.02414803]
[1763473408226,0.0428,91261.0,91260.0,0.04687803]
[1763473409934,0.0438,91261.0,91260.0,0.04687803]
[1763473410830,0.06743668,91261.0,91260.0,0.04687803]
[1763473413230,0.06744278,91261.0,91260.0,0.04687803]
[1763473414237,0.0438,91261.0,91260.0,0.04687803]
[1763473414437,0.06744594,91261.0,91260.0,0.04687803]
[1763473414642,0.04110473,91261.0,91260.0,0.04687803]
[1763473414837,0.06273473,91261.0,91260.0,0.04687803]
[1763473416240,0.04627594,91261.0,91260.0,0.05430803]
[1763473416432,0.02464594,91261.0,91260.0,0.05430803]
[1763473417140,0.06744594,91261.0,91260.0,0.05430803]
[1763473417738,0.06744594,91261.0,91260.0,0.04687803]
[1763473419549,0.06744594,91261.0,91260.0,0.04687803]
[1763473419744,0.02464594,91261.0,91260.0,0.04687803]
[1763473420035,0.001,91261.0,91260.0,0.04687803]
[1763473421236,0.0438,91261.0,91260.0,0.04687803]
[1763473422135,0.02263,91261.0,91260.0,0.04687803]
[1763473422337,0.001,91261.0,91260.0,0.04687803]
[1763473422637,0.0428,91272.0,91264.0,0.01275]
[1763473422937,0.06644858,91271.0,91270.0,0.04468]
[1763473423242,0.04307387,91286.0,91285.0,0.04468]
[1763473423429,0.06666858,91286.0,91285.0,0.04468]
[1763473425140,0.0428,91253.0,91252.0,0.05890604]
[1763473425444,0.02163,91251.0,91250.0,0.04687803]
[1763473425839,0.05115,91260.0,91259.0,0.02195]
[1763473426038,0.07473869,91260.0,91259.0,0.02195]
[1763473427444,0.06638869,91260.0,91259.0,0.04468]
[1763473429938,0.04521869,91260.0,91259.0,0.04468]
[1763473430141,0.02358869,91260.0,91259.0,0.04468]
[1763473430941,0.0428,91260.0,91259.0,0.04468]
[1763473431142,0.05557,91260.0,91259.0,0.04468]
[1763473431748,0.0428,91260.0,91259.0,0.04468]
[1763473432640,0.04296436,91269.0,91268.0,0.04468]
[1763473433948,0.05673436,91269.0,91268.0,0.02195]
[1763473434344,0.02279436,91269.0,91268.0,0.04468]
[1763473434553,0.00116436,91269.0,91268.0,0.04468]
[1763473439345,0.00027387,91286.0,91285.0,0.04483]
[1763473440649,0.04365,91288.0,91287.0,0.05847]
[1763473440851,0.04365,91288.0,91287.0,0.02313]
[1763473441044,0.04365,91288.0,91287.0,0.04483]
[1763473441551,0.04381436,91295.0,91294.0,0.04483]
[1763473441753,0.04365,91291.0,91290.0,0.04702803]
[1763473441957,0.04365,91291.0,91290.0,0.00219803]
[1763473442644,0.04365,91291.0,91290.0,0.02532803]
[1763473442845,0.04365,91291.0,91290.0,0.04702803]
[1763473443640,0.00016436,91295.0,91290.0,0.04702803]
[1763473443641,0.02160436,91295.0,91294.0,0.04483]
[1763473443949,0.04381436,91295.0,91294.0,0.04483]
[1763473444148,0.02160436,91295.0,91294.0,0.04483]
[1763473444356,0.04381436,91295.0,91294.0,0.04483]
[1763473444652,0.00016436,91295.0,91294.0,0.04483]
[1763473445060,0.00116436,91295.0,91294.0,0.04483]
[1763473445850,0.04481436,91295.0,91290.0,0.00219803]
[1763473446049,0.04365,91291.0,91290.0,0.00219803]
[1763473446655,0.02144,91291.0,91290.0,0.04702803]
[1763473446862,0.04365,91291.0,91290.0,0.00219803]
[1763473447552,0.04365,91277.0,91270.0,0.03942901]
[1763473447750,0.04365,91277.0,91276.0,0.04499436]
[1763473448550,0.04365,91281.0,91280.0,0.02532803]
[1763473449246,0.04365,91277.0,91276.0,0.00016436]
[1763473454376,0.04365,91277.0,91276.0,0.04499436]
[1763473454677,0.04465,91277.0,91276.0,0.04499436]
[1763473454978,0.04465,91277.0,91276.0,0.00016436]
[1763473455780,0.04465,91277.0,91276.0,0.02329436]
[1763473456381,0.04465,91277.0,91276.0,0.04499436]
[1763473459280,0.001,91277.0,91276.0,0.04499436]
[1763473459874,0.02244,91277.0,91276.0,0.04499436]
[1763473460075,0.04567,91277.0,91276.0,0.04499436]
[1763473461783,0.001,91277.0,91276.0,0.04499436]
[1763473466789,0.08391942,91292.0,91291.0,0.04273]
[1763473466984,0.04479,91292.0,91291.0,0.04273]
[1763473467589,0.04472,91291.0,91290.0,0.00219803]
[1763473468778,0.04472,91291.0,91290.0,0.02465803]
[1763473469286,0.04572,91291.0,91290.0,0.02465803]
[1763473472079,0.04572,91291.0,91290.0,0.00219803]
[1763473472484,0.04572,91291.0,91264.0,0.05890604]
[1763473472485,0.00946,91273.0,91246.0,0.00027399]
[1763473472685,0.03918305,91256.0,91246.0,0.00027399]
[1763473472885,0.05877458,91257.0,91246.0,0.00027399]
[1763473473090,0.05877458,91256.0,91246.0,0.00027399]
[1763473473298,0.03912737,91253.0,91246.0,0.00027399]
[1763473473481,0.03912737,91251.0,91246.0,0.00027399]
[1763473473686,0.03912737,91250.0,91246.0,0.00027399]
[1763473474092,0.03912737,91249.0,91246.0,0.00027399]
[1763473474293,9.017e-05,91248.0,91246.0,0.00027399]
[1763473474687,9.017e-05,91248.0,91240.0,0.00016436]
[1763473474983,0.03908085,91243.0,91240.0,0.00016436]
[1763473475192,0.03908085,91241.0,91231.0,0.01167]
[1763473475393,9.724e-05,91240.0,91215.0,0.03639]
[1763473475590,0.10580126,91234.0,91215.0,0.05835]
[1763473475898,0.10580126,91225.0,91215.0,0.01393]
[1763473476093,0.10580126,91225.0,91215.0,0.05835]
[1763473476290,9.346e-05,91224.0,91215.0,0.05835]
[1763473478987,9.346e-05,91224.0,91223.0,0.04442]
[1763473479497,0.00109346,91224.0,91220.0,0.00219803]
[1763473479700,0.00109346,91224.0,91220.0,0.02465803]
[1763473480192,9.346e-05,91224.0,91215.0,0.03639]
[1763473480495,0.00109346,91224.0,91215.0,0.03639]
[1763473480890,0.00109346,91224.0,91215.0,0.05835]
[1763473481088,0.00109346,91224.0,91215.0,0.01393]
[1763473481283,0.00109346,91224.0,91215.0,0.05835]
[1763473481888,0.00109346,91224.0,91223.0,0.04442]
[1763473483101,0.00109346,91224.0,91220.0,0.00219803]
[1763473483292,0.00109346,91224.0,91220.0,0.02465803]
[1763473483600,0.00109346,91224.0,91211.0,0.00016436]
[1763473483601,0.1096,91223.0,91211.0,0.04458436]
[1763473483899,0.00109346,91224.0,91211.0,0.04458436]
[1763473484305,0.00109346,91224.0,91223.0,0.04442]
[1763473484593,0.00109346,91224.0,91223.0,0.02246]
[1763473484894,0.00109346,91224.0,91223.0,0.04442]
[1763473485801,9.346e-05,91224.0,91223.0,0.04442]
[1763473486100,0.00109346,91224.0,91223.0,0.04442]
[1763473486801,9.346e-05,91224.0,91223.0,0.04442]
[1763473487098,0.00109346,91224.0,91223.0,0.04442]
[1763473490996,0.02829877,91224.0,91223.0,0.04442]
[1763473492299,0.02729877,91224.0,91223.0,0.04442]
[1763473492505,0.02829877,91224.0,91223.0,0.04442]
[1763473493296,0.00016436,91229.0,91228.0,0.04442]
[1763473493599,0.03908085,91242.0,91241.0,0.04442]
[1763473493996,0.03908085,91244.0,91243.0,0.04442]
[1763473494508,0.22205063,91250.0,91249.0,0.04442]
[1763473495800,0.00016436,91253.0,91251.0,0.01393]
[1763473495998,0.08735002,91253.0,91251.0,0.01393]
[1763473496393,0.07836611,91252.0,91251.0,0.01393]
[1763473497307,0.08735002,91253.0,91251.0,0.01393]
[1763473497603,0.08935002,91253.0,91251.0,0.01393]
[1763473499109,0.08935002,91253.0,91242.0,0.03639]
[1763473499302,0.077803,91245.0,91242.0,0.05958]
[1763473499993,0.077803,91246.0,91245.0,0.04608]
[1763473500200,0.077803,91247.0,91245.0,0.04608]
[1763473500406,0.08835002,91253.0,91252.0,0.04608]
[1763473500607,0.08835002,91253.0,91248.0,0.01318]
[1763473500608,0.01712,91249.0,91248.0,0.01318]
[1763473500913,0.01712,91249.0,91248.0,0.05926]
[1763473501110,0.01712,91235.0,91234.0,0.00016436]
[1763473501410,0.01712,91235.0,91216.0,0.01318]
[1763473501411,0.09509066,91238.0,91237.0,0.02289]
[1763473501597,0.01712,91238.0,91237.0,0.04608]
[1763473502305,0.22205063,91244.0,91240.0,0.00219803]
[1763473502502,0.09878977,91246.0,91245.0,0.04608]
[1763473502818,0.00016436,91253.0,91252.0,0.04608]
[1763473503001,0.13375695,91269.0,91267.0,0.04608]
[1763473503201,0.04339,91275.0,91274.0,0.04608]
[1763473503610,0.0138,91280.0,91279.0,0.04608]
[1763473503611,0.02164,91280.0,91279.0,0.04608]
[1763473503810,0.04366387,91286.0,91285.0,0.02289]
[1763473504016,0.04339,91281.0,91280.0,0.00219803]
[1763473504317,0.10199514,91281.0,91280.0,0.00219803]
[1763473505112,0.04339,91281.0,91280.0,0.00219803]
[1763473505512,0.06746988,91281.0,91280.0,0.00219803]
[1763473505711,0.04339,91277.0,91276.0,0.00016436]
[1763473505927,0.10650772,91277.0,91276.0,0.04624436]
[1763473506234,0.06746988,91277.0,91276.0,0.04624436]
[1763473508236,0.02507988,91277.0,91276.0,0.04624436]
[1763473508932,0.04671988,91277.0,91276.0,0.04624436]
[1763473509137,0.02507988,91277.0,91276.0,0.04624436]
[1763473510435,0.04571988,91277.0,91276.0,0.04624436]
[1763473510635,0.04671988,91277.0,91276.0,0.04624436]
[1763473510836,0.001,91277.0,91276.0,0.04624436]
[1763473511542,0.00027387,91286.0,91285.0,0.04608]
[1763473511739,0.02428758,91286.0,91285.0,0.04608]
[1763473512034,0.00027387,91286.0,91285.0,0.04608]
[1763473514839,0.04366387,91286.0,91285.0,0.04608]
[1763473515238,0.00127387,91286.0,91285.0,0.04608]
[1763473517736,0.0138,91305.0,91294.0,0.04608]
[1763473518635,0.02414716,91295.0,91294.0,0.04608]
[1763473519235,0.00016436,91295.0,91294.0,0.04608]
[1763473519437,0.02414901,91295.0,91294.0,0.04608]
[1763473520233,0.06905901,91295.0,91294.0,0.04608]
[1763473520635,0.02414901,91295.0,91294.0,0.04608]
[1763473520841,0.02414901,91295.0,91290.0,0.00219803]
[1763473520842,0.04562,91315.0,91314.0,0.04609]
[1763473521043,0.14603829,91330.0,91314.0,0.05927]
[1763473521337,0.04562,91321.0,91320.0,0.04828803]
[1763473522231,0.14603829,91330.0,91320.0,0.04828803]
[1763473522232,0.19182255,91330.0,91329.0,0.04609]
[1763473522433,0.00016426,91330.0,91329.0,0.04609]
[1763473523146,0.00016426,91330.0,91314.0,0.01318]
[1763473523147,0.04578426,91330.0,91314.0,0.01318]
[1763473523339,0.04562,91321.0,91320.0,0.04828803]
[1763473525540,0.04562,91321.0,91311.0,0.00016426]
[1763473525541,0.04562,91312.0,91311.0,0.00016426]
[1763473525740,0.04562,91312.0,91287.0,0.01335]
[1763473526050,0.04562,91291.0,91290.0,0.04828803]
[1763473528047,0.04562,91291.0,91290.0,0.04804803]
[1763473528243,0.05679426,91300.0,91299.0,0.04505]
[1763473528443,0.04506426,91300.0,91299.0,0.04505]
[1763473528648,0.05862426,91300.0,91299.0,0.04505]
[1763473528949,0.05862426,91300.0,91299.0,0.02231]
[1763473529335,0.05862426,91300.0,91299.0,0.04505]
[1763473529336,0.04506426,91300.0,91299.0,0.04505]
[1763473529541,0.0449,91291.0,91290.0,0.02231]
[1763473529740,0.0449,91291.0,91290.0,0.04724803]
[1763473530546,0.0449,91291.0,91290.0,0.00219803]
[1763473531342,0.04461,91282.0,91281.0,0.00016426]
[1763473531946,0.05560232,91282.0,91281.0,0.00016426]
[1763473532244,0.04461,91282.0,91281.0,4.26e-06]
[1763473535251,0.001,91282.0,91281.0,0.04445426]
[1763473535755,0.001,91282.0,91281.0,0.07347215]
[1763473536948,0.02426,91282.0,91281.0,0.07347215]
[1763473537151,0.001,91282.0,91281.0,0.07347215]
[1763473537657,0.19169255,91300.0,91299.0,0.04445]
[1763473537954,0.19169255,91300.0,91299.0,0.023]
[1763473537955,0.05945426,91300.0,91299.0,0.023]
[1763473538153,0.05945426,91300.0,91289.0,0.013]
[1763473538357,0.17813255,91300.0,91299.0,0.04445]
[1763473538556,0.04589426,91300.0,91299.0,0.04445]
[1763473539250,0.00016426,91300.0,91299.0,0.04445]
[1763473539647,0.04589426,91300.0,91299.0,0.04445]
[1763473539850,0.00016426,91300.0,91299.0,0.04445]
[1763473540148,0.00016426,91300.0,91299.0,0.07347844]
[1763473540455,0.00116426,91300.0,91299.0,0.07347844]
[1763473545851,0.02326,91320.0,91319.0,0.04445]
[1763473546050,0.02326,91320.0,91310.0,0.01005]
[1763473546051,0.14529829,91330.0,91320.0,0.00219803]
[1763473546252,0.19102829,91330.0,91329.0,0.023]
[1763473546448,0.19102829,91330.0,91320.0,0.01496803]
[1763473546449,0.04573,91340.0,91339.0,0.04445]
[1763473546850,0.02326,91340.0,91339.0,0.04445]
[1763473547066,0.04589426,91349.0,91348.0,0.04445]
[1763473547262,0.00016426,91349.0,91348.0,0.04445]
[1763473547555,0.01075992,91353.0,91352.0,0.04445]
[1763473547863,0.14529829,91400.0,91379.0,0.023]
[1763473547864,0.17796829,91380.0,91379.0,0.023]
[1763473548049,0.04573,91380.0,91379.0,0.023]
[1763473548249,1.54573,91380.0,91379.0,0.04445]
[1763473548455,0.14529829,91390.0,91380.0,0.00219803]
[1763473548659,0.04573,91381.0,91380.0,0.02519803]
[1763473548859,1.54573,91381.0,91380.0,0.02519803]
[1763473549057,0.04573,91377.0,91376.0,0.00016415]
[1763473550465,0.04673,91377.0,91376.0,0.00016415]
[1763473550758,0.02426,91377.0,91376.0,0.04461415]
[1763473550960,0.04673,91377.0,91376.0,0.00016415]
[1763473552663,0.04673,91377.0,91350.0,0.01261]
[1763473552958,0.04573,91361.0,91360.0,0.00219803]
[1763473553858,0.04473,91361.0,91360.0,0.00219803]
[1763473554459,0.02326,91352.0,91351.0,0.02316415]
[1763473554668,0.04473,91352.0,91351.0,0.04461415]
[1763473554863,0.04473,91352.0,91351.0,0.00016415]
[1763473555366,0.04373,91352.0,91351.0,0.00016415]
[1763473556168,0.04373,91352.0,91351.0,0.02316415]
[1763473556466,0.04373,91352.0,91351.0,0.00016415]
[1763473557362,0.01306,91368.0,91351.0,0.04690415]
[1763473557563,0.001,91352.0,91351.0,0.04690415]
[1763473558070,0.04557,91352.0,91351.0,0.00016415]
[1763473558257,0.04557,91352.0,91351.0,0.00116415]
[1763473561068,0.04557,91352.0,91351.0,0.00016415]
[1763473561472,0.001,91352.0,91351.0,0.04615415]
[1763473567970,0.04457,91368.0,91367.0,0.04599]
[1763473568172,0.04457,91368.0,91351.0,0.00016415]
[1763473568370,0.04457,91361.0,91360.0,0.04818803]
[1763473568566,0.14521244,91370.0,91360.0,0.06077803]
[1763473568766,0.02156,91361.0,91360.0,0.04818803]
[1763473569374,0.18978244,91370.0,91369.0,0.04599]
[1763473569667,0.00016415,91370.0,91369.0,0.04599]
[1763473570774,0.17680829,91390.0,91389.0,0.04599]
[1763473570970,0.04457,91390.0,91389.0,0.04599]
[1763473571171,0.04457,91390.0,91370.0,0.01296]
[1763473571172,1.55738,91390.0,91370.0,0.01296]
[1763473571472,1.68961829,91390.0,91380.0,0.01515803]
[1763473571676,0.02156,91381.0,91380.0,0.06114803]
[1763473571876,0.04457,91381.0,91380.0,0.04818803]
[1763473572071,1.64521244,91390.0,91380.0,0.06114803]
[1763473572371,1.64521244,91390.0,91389.0,0.02325]
[1763473572570,1.51297415,91390.0,91389.0,0.02325]
[1763473573166,1.51297415,91390.0,91380.0,0.01296]
[1763473573368,1.51297415,91390.0,91381.0,0.02901205]
[1763473573566,0.04457,91381.0,91380.0,0.02544803]
[1763473573777,0.04457,91381.0,91380.0,0.00219803]
[1763473574860,0.04457,91372.0,91371.0,0.04615415]
[1763473575062,0.04457,91372.0,91371.0,0.02919949]
[1763473576068,0.04457,91372.0,91371.0,0.03019949]
[1763473576376,0.04457,91372.0,91371.0,0.07618949]
[1763473577168,0.02156,91372.0,91371.0,0.07618949]
[1763473577476,0.04457,91372.0,91371.0,0.07618949]
[1763473578369,0.04457,91372.0,91371.0,0.05968747]
[1763473578569,0.04457,91372.0,91371.0,0.00116415]
[1763473579974,0.04457,91372.0,91371.0,0.00016415]
[1763473580980,0.04457,91372.0,91371.0,0.05109282]
[1763473581281,0.04457,91372.0,91371.0,0.00016415]
[1763473581584,0.04457,91372.0,91371.0,0.02934067]
[1763473581585,0.04557,91372.0,91371.0,0.02934067]
[1763473582876,0.04557,91372.0,91371.0,0.00016415]
[1763473583271,0.04557,91372.0,91358.0,0.02949421]
[1763473583272,0.04465,91362.0,91358.0,0.02949421]
[1763473583472,0.04465,91359.0,91354.0,0.03911857]
[1763473583781,0.04465,91357.0,91356.0,0.02949506]
[1763473583984,0.04465,91357.0,91356.0,0.05867364]
[1763473584178,0.04465,91357.0,91356.0,0.05100835]
[1763473584384,0.04465,91357.0,91356.0,0.07364835]
[1763473584590,0.04465,91357.0,91356.0,0.10314364]
[1763473584784,0.04465,91357.0,91356.0,0.07364835]
[1763473585384,0.04465,91357.0,91356.0,0.05100835]
[1763473585975,0.04465,91357.0,91356.0,0.02917835]
[1763473586375,0.04465,91357.0,91356.0,0.05100835]
[1763473587389,0.04465,91357.0,91356.0,0.07364835]
[1763473587785,0.00219803,91360.0,91359.0,0.05887]
[1763473587985,0.00219803,91360.0,91359.0,0.11754829]
[1763473588474,0.00016415,91366.0,91365.0,0.04519]
[1763473588678,0.00016415,91366.0,91365.0,0.07436835]
[1763473590983,1.73417309,91390.0,91365.0,0.07436835]
[1763473591178,0.04508,91381.0,91380.0,0.04592267]
[1763473591384,0.04508,91381.0,91380.0,0.07510102]
[1763473591587,1.5,91390.0,91389.0,0.04519]
[1763473591780,0.04508,91381.0,91380.0,0.04519]
[1763473591986,0.04508,91381.0,91380.0,0.07511408]
[1763473592187,1.72152724,91390.0,91389.0,0.04519]
[1763473592385,1.72472527,91390.0,91389.0,0.04519]
[1763473592583,0.04508,91381.0,91380.0,0.05887]
[1763473592881,0.04508,91381.0,91380.0,0.08879369]
[1763473593081,0.04508,91381.0,91380.0,0.07511369]
[1763473593276,0.04508,91381.0,91380.0,0.02919102]
[1763473594078,0.04508,91372.0,91371.0,0.02966829]
[1763473594280,0.04508,91372.0,91371.0,0.05886136]
[1763473594594,0.04508,91372.0,91371.0,0.02935722]
[1763473594789,0.04508,91372.0,91371.0,0.00016415]
[1763473595584,0.04608,91372.0,91371.0,0.00016415]
[1763473597090,0.04608,91372.0,91371.0,0.02236415]
[1763473597488,0.04608,91372.0,91371.0,0.00016415]